[Event "34th MPL National U12 Chess-ch 2022"]
[Site "Mysore"]
[Date "2022.04.13"]
[Round "9.5"]
[White "Ajay Santhosh Parvathareddy"]
[Black "Mrinmoy Rajkhowa"]
[Result "0-1"]
[ECO "D04"]
[WhiteElo "1296"]
[BlackElo "1634"]
[Annotator "NA RC"]
[PlyCount "211"]
[EventDate "2022.04.09"]
[EventCountry "IND"]
[SourceTitle "playchess.com"]
[Source "ChessBase"]
[SourceQuality "1"]
[TimeControl "5400+30"]

1. d4 {[%emt 0:00:01]} Nf6 {[%emt 0:00:07]} 2. Nf3 {[%emt 0:00:05]} g6 {[%emt 0:00:04]} 3. b3 {[%emt 0:00:05]} Bg7 {[%emt 0:00:04]} 4. Bb2 {[%emt 0:00:06]} d5 {[%emt 0:00:10]} 5. e3 {[%emt 0:00:05]} O-O {[%emt 0:00:06]} 6. Be2 {[%emt 0:00:04]} c5 {[%emt 0:00:08]} 7. O-O {[%emt 0:00:07]} Ne4 {[%emt 0:00:25]} 8. Nbd2 {[%emt 0:00:18]} Bf5 {[%emt 0:00:26]} 9. Ne5 {[%emt 0:01:34]} cxd4 {[%emt 0:07:33]} 10. exd4 {[%emt 0:00:13]} Nxd2 {[%emt 0:12:20]} 11. Qxd2 {[%emt 0:00:11]} Nd7 {[%emt 0:00:20]} 12. Nxd7 {[%emt 0:04:58]} Qxd7 {[%emt 0:00:24]} 13. Bd3 {[%emt 0:00:20]} Rac8 {[%emt 0:06:30]} 14. Rfe1 {[%emt 0:00:36]} Bxd3 {[%emt 0:05:17]} 15. Qxd3 {[%emt 0:00:08]} Rfd8 {[%emt 0:01:39]} 16. Re2 {[%emt 0:03:24]} Bf6 {[%emt 0:07:54]} 17. Rf1 {[%emt 0:07:58]} Qf5 {[%emt 0:02:54]} 18. Qxf5 {[%emt 0:07:34]} gxf5 {[%emt 0:00:06]} 19. f4 {[%emt 0:00:08]} b5 {[%emt 0:07:26]} 20. a3 {[%emt 0:21:34]} a5 {[%emt 0:04:23]} 21. c3 {[%emt 0:01:08]} Rc6 {[%emt 0:11:06]} 22. Rf3 {[%emt 0:08:41]} Rdc8 {[%emt 0:06:27]} 23. Rd3 {[%emt 0:01:16]} Kg7 {[%emt 0:05:24]} 24. g3 {[%emt 0:06:09]} a4 {[%emt 0:00:43]} 25. b4 {[%emt 0:00:17]} Kf8 {[%emt 0:00:53]} 26. Kf2 {[%emt 0:01:35]} h5 {[%emt 0:00:47]} 27. h4 {[%emt 0:00:51]} Ke8 {[%emt 0:00:59]} 28. Kf3 {[%emt 0:00:35]} Kd7 {[%emt 0:00:22]} 29. Rde3 {[%emt 0:00:18]} Rg8 {[%emt 0:00:30]} 30. Ba1 {[%emt 0:00:42]} e6 {[%emt 0:00:14]} 31. Bb2 {[%emt 0:00:29]} Rcc8 {[%emt 0:01:16]} 32. Rg2 {[%emt 0:00:14]} Kd6 {[%emt 0:00:07]} 33. Kf2 {[%emt 0:16:34]} Rg4 {[%emt 0:01:24]} 34. Rh2 {[%emt 0:00:07]} Bh8 {[%emt 0:01:03]} 35. Rh1 {[%emt 0:01:46]} Rcg8 {[%emt 0:04:32]} 36. Rhe1 {[%emt 0:00:52]} Bg7 {[%emt 0:01:22]} 37. Bc1 {[%emt 0:00:23]} Bh6 {[%emt 0:00:08]} 38. Rf3 {[%emt 0:00:23]} Kd7 {[%emt 0:01:43]} 39. Rd3 {[%emt 0:00:29]} Bf8 {[%emt 0:01:05]} 40. Rde3 {[%emt 0:00:38]} Be7 {[%emt 0:00:10]} 41. Rh1 {[%emt 0:02:48]} Bd6 {[%emt 0:00:07]} 42. Rd3 {[%emt 0:00:12]} Bc7 {[%emt 0:00:08]} 43. Re1 {[%emt 0:00:50]} Kc6 {[%emt 0:00:27]} 44. Bd2 {[%emt 0:02:59]} Kd7 {[%emt 0:00:22]} 45. Bc1 {[%emt 0:00:11]} f6 {[%emt 0:01:17]} 46. Bd2 {[%emt 0:00:40]} Bb6 {[%emt 0:01:00]} 47. Rde3 {[%emt 0:00:22]} Re8 {[%emt 0:02:24]} 48. Kf3 {[%emt 0:00:35]} Bc7 {[%emt 0:00:16]} 49. Rd3 {[%emt 0:00:45]} Rg7 {[%emt 0:00:55]} 50. Be3 {[%emt 0:01:47]} Reg8 {[%emt 0:00:51]} 51. Bf2 {[%emt 0:00:11]} Re8 {[%emt 0:00:52]} 52. Rde3 {[%emt 0:00:21]} Rge7 {[%emt 0:00:06]} 53. Rd3 {[%emt 0:00:17]} Kc6 {[%emt 0:00:14]} 54. Rde3 {[%emt 0:00:34]} Kd6 {[%emt 0:00:49]} 55. R3e2 {[%emt 0:00:09]} Bb6 {[%emt 0:00:22]} 56. Bg1 {[%emt 0:00:12]} Rc8 {[%emt 0:02:03]} 57. Re3 {[%emt 0:00:13]} Rc6 {[%emt 0:00:23]} 58. Kg2 {[%emt 0:00:49]} Kd7 {[%emt 0:00:12]} 59. Bf2 {[%emt 0:00:09]} Ke8 {[%emt 0:00:20]} 60. R1e2 {[%emt 0:00:33]} Kf7 {[%emt 0:00:28]} 61. Be1 {[%emt 0:00:09]} Bc7 {[%emt 0:00:23]} 62. Bf2 {[%emt 0:00:26]} Rc4 {[%emt 0:00:32]} 63. Rf3 {[%emt 0:00:31]} Bb8 {[%emt 0:00:38]} 64. Be1 {[%emt 0:00:44]} Kg6 {[%emt 0:01:29]} 65. Ref2 {[%emt 0:00:44]} Rc8 {[%emt 0:00:33]} 66. Bd2 {[%emt 0:01:05]} Rf8 {[%emt 0:00:51]} 67. Rd3 {[%emt 0:00:12]} Kf7 {[%emt 0:00:15]} 68. Re2 {[%emt 0:00:23]} Ke8 {[%emt 0:00:08]} 69. Rde3 {[%emt 0:00:20]} Kd7 {[%emt 0:00:00]} 70. Rd3 {[%emt 0:00:23]} Kc6 {[%emt 0:00:00]} 71. Kh3 {[%emt 0:00:22]} Rg8 {[%emt 0:00:00]} 72. Rde3 {[%emt 0:00:14]} Kd6 {[%emt 0:00:00]} 73. Be1 {[%emt 0:00:14]} Rg4 {[%emt 0:00:00]} 74. Bf2 {[%emt 0:00:12]} Rg8 {[%emt 0:00:25]} 75. Rd3 {[%emt 0:00:10]} Kc6 {[%emt 0:00:14]} 76. Rde3 {[%emt 0:00:30]} Rge8 {[%emt 0:00:06]} 77. Kg2 {[%emt 0:00:21]} e5 {[%emt 0:01:25]} 78. dxe5 {[%emt 0:00:08]} fxe5 {[%emt 0:00:05]} 79. fxe5 {[%emt 0:00:07]} Rxe5 {[%emt 0:00:15]} 80. Rxe5 {[%emt 0:00:06]} Rxe5 {[%emt 0:00:05]} 81. Rxe5 {[%emt 0:00:07]} Bxe5 {[%emt 0:00:03]} 82. Bd4 {[%emt 0:00:06]} Bd6 {[%emt 0:01:46]} 83. Bg7 {[%emt 0:00:06]} d4 {[%emt 0:02:43]} 84. Bxd4 {[%emt 0:00:08]} Kd5 {[%emt 0:00:07]} 85. Kf3 {[%emt 0:00:21]} Kc4 {[%emt 0:00:14]} 86. Bc5 {[%emt 0:00:57]} Bc7 {[%emt 0:00:46]} 87. Be3 {[%emt 0:00:08]} Kxc3 {[%emt 0:00:37]} 88. Bf4 {[%emt 0:00:36]} Bxf4 {[%emt 0:01:36]} 89. Kxf4 {[%emt 0:00:05]} Kb3 {[%emt 0:00:02]} 90. Kxf5 {[%emt 0:00:07]} Kxa3 {[%emt 0:00:03]} 91. g4 {[%emt 0:00:05]} hxg4 {[%emt 0:00:15]} 92. h5 {[%emt 0:00:03]} g3 {[%emt 0:00:05]} 93. h6 {[%emt 0:00:05]} g2 {[%emt 0:00:02]} 94. h7 {[%emt 0:00:03]} g1=Q {[%emt 0:00:05]} 95. h8=Q {[%emt 0:20:09]} Qb1+ {[%emt 0:00:13]} 96. Kf4 {[%emt 0:00:00]} Qxb4+ {[%emt 0:00:03]} 97. Kg5 {[%emt 0:00:00]} Qd2+ {[%emt 0:00:20]} 98. Kg4 {[%emt 0:00:00]} Qb4+ {[%emt 0:00:38]} 99. Kf3 {[%emt 0:00:00]} Qb3+ {[%emt 0:00:03]} 100. Ke4 {[%emt 0:00:00]} Qb1+ {[%emt 0:01:00]} 101. Ke3 {[%emt 0:00:00]} b4 {[%emt 0:00:04]} 102. Qf8 {[%emt 0:00:00]} Ka2 {[%emt 0:00:16]} 103. Qa8 {[%emt 0:00:00]} a3 {[%emt 0:00:09]} 104. Qh8 {[%emt 0:00:00]} b3 {[%emt 0:00:19]} 105. Qc3 {[%emt 0:00:00]} Qc2 {[%emt 0:00:08]} 106. Kd4 {[%emt 0:00:00]} 0-1

[Event "34th MPL National U12 Chess-ch 2022"]
[Site "Mysore"]
[Date "2022.04.13"]
[Round "9.6"]
[White "Ayushman Mohanty"]
[Black "Tanmay Rajbongshi"]
[Result "0-1"]
[ECO "B32"]
[WhiteElo "1480"]
[BlackElo "1516"]
[Annotator "NA RC"]
[PlyCount "120"]
[EventDate "2022.04.09"]
[EventCountry "IND"]
[SourceTitle "playchess.com"]
[Source "ChessBase"]
[SourceQuality "1"]
[TimeControl "5400+30"]

1. e4 {[%emt 0:00:08]} c5 {[%emt 0:00:09]} 2. Nf3 {[%emt 0:00:09]} Nc6 {[%emt 0:00:03]} 3. d4 {[%emt 0:00:13]} cxd4 {[%emt 0:00:11]} 4. Nxd4 {[%emt 0:00:09]} e5 {[%emt 0:00:11]} 5. Nb5 {[%emt 0:00:12]} a6 {[%emt 0:00:14]} 6. Nd6+ {[%emt 0:00:09]} Bxd6 {[%emt 0:00:12]} 7. Qxd6 {[%emt 0:00:15]} Qf6 {[%emt 0:00:20]} 8. Qxf6 {[%emt 0:00:13]} Nxf6 {[%emt 0:00:06]} 9. Nc3 {[%emt 0:00:19]} d5 {[%emt 0:00:45]} 10. exd5 {[%emt 0:00:18]} Nb4 {[%emt 0:00:17]} 11. Bd3 {[%emt 0:00:09]} Nxd3+ {[%emt 0:00:21]} 12. cxd3 {[%emt 0:00:11]} b5 {[%emt 0:00:13]} 13. Bg5 {[%emt 0:00:32]} b4 {[%emt 0:01:12]} 14. Bxf6 {[%emt 0:00:23]} gxf6 {[%emt 0:00:09]} 15. Ne4 {[%emt 0:00:10]} f5 {[%emt 0:01:03]} 16. Nd6+ {[%emt 0:00:09]} Ke7 {[%emt 0:00:28]} 17. Nc4 {[%emt 0:00:10]} f6 {[%emt 0:00:55]} 18. f4 {[%emt 0:00:24]} Bb7 {[%emt 0:04:02]} 19. fxe5 {[%emt 0:16:32]} fxe5 {[%emt 0:04:24]} 20. Nxe5 {[%emt 0:06:37]} Bxd5 {[%emt 0:02:40]} 21. Kf2 {[%emt 0:10:38]} Rhg8 {[%emt 0:04:01]} 22. Nf3 {[%emt 0:04:50]} Rac8 {[%emt 0:09:24]} 23. Rhe1+ {[%emt 0:04:22]} Kf6 {[%emt 0:01:35]} 24. Rec1 {[%emt 0:13:29]} a5 {[%emt 0:02:57]} 25. g3 {[%emt 0:13:40]} a4 {[%emt 0:11:49]} 26. Nd2 {[%emt 0:05:15]} Rcd8 {[%emt 0:06:03]} 27. Rd1 {[%emt 0:13:04]} f4 {[%emt 0:07:26]} 28. Nc4 {[%emt 0:05:50]} Kf5 {[%emt 0:04:08]} 29. Rac1 {[%emt 0:02:11]} fxg3+ {[%emt 0:03:16]} 30. hxg3 {[%emt 0:00:21]} Rdf8 {[%emt 0:00:35]} 31. Rg1 {[%emt 0:02:43]} Kg5+ {[%emt 0:01:01]} 32. Ke3 {[%emt 0:01:03]} Rf3+ {[%emt 0:01:03]} 33. Kd2 {[%emt 0:01:15]} Rd8 {[%emt 0:04:28]} 34. Ne5 {[%emt 0:00:36]} Rf2+ {[%emt 0:01:58]} 35. Ke3 {[%emt 0:00:08]} Rxb2 {[%emt 0:00:26]} 36. Rb1 {[%emt 0:00:21]} Rxb1 {[%emt 0:01:48]} 37. Rxb1 {[%emt 0:00:11]} Rb8 {[%emt 0:00:23]} 38. Nc4 {[%emt 0:00:58]} Kg4 {[%emt 0:02:16]} 39. Kd4 {[%emt 0:00:57]} Bg8 {[%emt 0:01:30]} 40. Ne5+ {[%emt 0:00:40]} Kh3 {[%emt 0:01:23]} 41. Nc6 {[%emt 0:00:24]} Bxa2 {[%emt 0:01:29]} 42. Rxb4 {[%emt 0:00:36]} Rxb4+ {[%emt 0:00:58]} 43. Nxb4 {[%emt 0:00:06]} Bb3 {[%emt 0:00:14]} 44. Ke5 {[%emt 0:00:48]} Kxg3 {[%emt 0:00:14]} 45. d4 {[%emt 0:00:20]} h5 {[%emt 0:01:11]} 46. d5 {[%emt 0:00:07]} Bxd5 {[%emt 0:00:08]} 47. Kxd5 {[%emt 0:00:18]} h4 {[%emt 0:00:11]} 48. Kd4 {[%emt 0:00:39]} h3 {[%emt 0:00:11]} 49. Nc2 {[%emt 0:01:01]} h2 {[%emt 0:00:08]} 50. Ne3 {[%emt 0:00:15]} h1=Q {[%emt 0:25:21]} 51. Nc2 {[%emt 0:00:11]} a3 {[%emt 0:00:00]} 52. Kc3 {[%emt 0:00:05]} a2 {[%emt 0:00:00]} 53. Kb2 {[%emt 0:00:05]} Qb1+ {[%emt 0:00:00]} 54. Kc3 {[%emt 0:00:13]} Qxc2+ {[%emt 0:00:00]} 55. Kxc2 {[%emt 0:00:09]} a1=Q {[%emt 0:00:00]} 56. Kd3 {[%emt 0:00:08]} Qa4 {[%emt 0:00:00]} 57. Ke3 {[%emt 0:00:09]} Qc4 {[%emt 0:00:00]} 58. Kd2 {[%emt 0:00:05]} Kf3 {[%emt 0:00:00]} 59. Kd1 {[%emt 0:00:14]} Ke3 {[%emt 0:00:00]} 60. Ke1 {[%emt 0:00:10]} Qc1# {[%emt 0:00:00]} 0-1

[Event "34th MPL National U12 Chess-ch 2022"]
[Site "Mysore"]
[Date "2022.04.13"]
[Round "10.1"]
[White "Vaz, Ethan"]
[Black "Adireddy Arjun"]
[Result "0-1"]
[ECO "B22"]
[WhiteElo "1384"]
[BlackElo "1796"]
[Annotator "NA RC"]
[PlyCount "154"]
[EventDate "2022.04.09"]
[EventCountry "IND"]
[SourceTitle "playchess.com"]
[Source "ChessBase"]
[SourceQuality "1"]
[TimeControl "5400+30"]

1. e4 {[%emt 0:00:03]} c5 {[%emt 0:00:07]} 2. c3 {[%emt 0:00:04]} Nf6 {[%emt 0:00:04]} 3. e5 {[%emt 0:00:13]} Nd5 {[%emt 0:00:06]} 4. d4 {[%emt 0:00:12]} cxd4 {[%emt 0:00:06]} 5. cxd4 {[%emt 0:00:05]} d6 {[%emt 0:00:05]} 6. Nf3 {[%emt 0:00:10]} e6 {[%emt 0:00:08]} 7. Bc4 {[%emt 0:00:26]} Nb6 {[%emt 0:00:08]} 8. Bb3 {[%emt 0:00:16]} dxe5 {[%emt 0:02:55]} 9. Nxe5 {[%emt 0:00:26]} Nc6 {[%emt 0:00:07]} 10. Nxc6 {[%emt 0:02:47]} bxc6 {[%emt 0:00:02]} 11. Nc3 {[%emt 0:03:17]} Ba6 {[%emt 0:02:36]} 12. a3 {[%emt 0:04:23]} Be7 {[%emt 0:03:20]} 13. Bc2 {[%emt 0:08:09]} Bf6 {[%emt 0:14:03]} 14. Be3 {[%emt 0:20:08]} Nc4 {[%emt 0:05:38]} 15. Rb1 {[%emt 0:16:47]} Nxe3 {[%emt 0:22:15]} 16. fxe3 {[%emt 0:00:02]} O-O {[%emt 0:00:51]} 17. Ne4 {[%emt 0:14:47]} Be7 {[%emt 0:15:39]} 18. Bd3 {[%emt 0:06:06]} Bxd3 {[%emt 0:00:31]} 19. Qxd3 {[%emt 0:00:02]} c5 {[%emt 0:00:03]} 20. O-O {[%emt 0:04:25]} cxd4 {[%emt 0:00:13]} 21. exd4 {[%emt 0:01:26]} Qb6 {[%emt 0:02:23]} 22. Kh1 {[%emt 0:02:32]} Rad8 {[%emt 0:01:18]} 23. Rfd1 {[%emt 0:03:21]} Rd7 {[%emt 0:04:45]} 24. Nc3 {[%emt 0:04:32]} Rfd8 {[%emt 0:01:58]} 25. d5 {[%emt 0:01:45]} Qb7 {[%emt 0:02:05]} 26. Qf3 {[%emt 0:01:52]} exd5 {[%emt 0:00:15]} 27. Rd3 {[%emt 0:00:22]} d4 {[%emt 0:05:27]} 28. Ne4 {[%emt 0:00:49]} Qd5 {[%emt 0:01:00]} 29. Rf1 {[%emt 0:00:59]} Rf8 {[%emt 0:01:11]} 30. Rfd1 {[%emt 0:01:01]} Qe5 {[%emt 0:03:24]} 31. h3 {[%emt 0:00:44]} f5 {[%emt 0:02:24]} 32. Ng3 {[%emt 0:00:45]} g6 {[%emt 0:01:12]} 33. b4 {[%emt 0:00:42]} Rfd8 {[%emt 0:01:55]} 34. Ne2 {[%emt 0:02:17]} Bf6 {[%emt 0:00:36]} 35. Nc1 {[%emt 0:00:33]} Qe4 {[%emt 0:01:59]} 36. Qf2 {[%emt 0:00:42]} Bg5 {[%emt 0:03:57]} 37. Nb3 {[%emt 0:00:15]} Be3 {[%emt 0:00:02]} 38. Qf1 {[%emt 0:00:34]} Re7 {[%emt 0:00:54]} 39. Nc5 {[%emt 0:00:53]} Qd5 {[%emt 0:00:21]} 40. Qf3 {[%emt 0:00:46]} Qxf3 {[%emt 0:01:18]} 41. gxf3 {[%emt 0:00:01]} g5 {[%emt 0:00:23]} 42. Nb3 {[%emt 0:00:50]} Red7 {[%emt 0:00:08]} 43. Nc5 {[%emt 0:00:15]} Rd5 {[%emt 0:00:18]} 44. Kg2 {[%emt 0:00:27]} Kf7 {[%emt 0:00:23]} 45. Nb7 {[%emt 0:00:32]} Re8 {[%emt 0:00:33]} 46. Nc5 {[%emt 0:00:28]} Kf6 {[%emt 0:00:14]} 47. Nb3 {[%emt 0:00:40]} Red8 {[%emt 0:00:01]} 48. Nc5 {[%emt 0:00:13]} h5 {[%emt 0:01:29]} 49. a4 {[%emt 0:00:21]} Ke5 {[%emt 0:02:11]} 50. a5 {[%emt 0:01:29]} Rc8 {[%emt 0:00:17]} 51. Rb3 {[%emt 0:00:30]} Rdxc5 {[%emt 0:00:39]} 52. bxc5 {[%emt 0:00:01]} Rxc5 {[%emt 0:00:01]} 53. Ra1 {[%emt 0:00:29]} Rc2+ {[%emt 0:00:19]} 54. Kf1 {[%emt 0:00:29]} Kf4 {[%emt 0:03:13]} 55. Rb5 {[%emt 0:00:09]} d3 {[%emt 0:00:00]} 56. Rd1 {[%emt 0:00:32]} Rf2+ {[%emt 0:00:00]} 57. Ke1 {[%emt 0:00:12]} d2+ {[%emt 0:00:00]} 58. Rxd2 {[%emt 0:00:04]} Rxd2 {[%emt 0:00:00]} 59. a6 {[%emt 0:00:20]} Ra2 {[%emt 0:00:00]} 60. Kd1 {[%emt 0:00:29]} Rxa6 {[%emt 0:00:00]} 61. Ke2 {[%emt 0:00:15]} Ra2+ {[%emt 0:00:00]} 62. Ke1 {[%emt 0:00:09]} Kxf3 {[%emt 0:00:00]} 63. Rxf5+ {[%emt 0:00:02]} Bf4 {[%emt 0:00:00]} 64. Kd1 {[%emt 0:00:10]} Rd2+ {[%emt 0:00:00]} 65. Ke1 {[%emt 0:00:06]} Rc2 {[%emt 0:00:03]} 66. Rd5 {[%emt 0:00:03]} Rc1+ {[%emt 0:00:06]} 67. Rd1 {[%emt 0:00:03]} Rxd1+ {[%emt 0:00:04]} 68. Kxd1 {[%emt 0:00:01]} g4 {[%emt 0:00:01]} 69. h4 {[%emt 0:00:09]} g3 {[%emt 0:00:05]} 70. Kc2 {[%emt 0:00:03]} g2 {[%emt 0:00:03]} 71. Kc3 {[%emt 0:00:12]} g1=Q {[%emt 0:00:05]} 72. Kd3 {[%emt 0:00:00]} Qd1+ {[%emt 0:00:09]} 73. Kc4 {[%emt 0:00:03]} Ke4 {[%emt 0:00:04]} 74. Kb5 {[%emt 0:00:04]} Kd5 {[%emt 0:00:04]} 75. Ka6 {[%emt 0:00:06]} Qb3 {[%emt 0:00:05]} 76. Kxa7 {[%emt 0:00:03]} Kc6 {[%emt 0:00:05]} 77. Ka8 {[%emt 0:00:04]} Qb7# {[%emt 0:00:04]} 0-1

[Event "34th MPL National U12 Chess-ch 2022"]
[Site "Mysore"]
[Date "2022.04.13"]
[Round "10.2"]
[White "Mrinmoy Rajkhowa"]
[Black "Goutham Krishna H"]
[Result "1/2-1/2"]
[ECO "B80"]
[WhiteElo "1634"]
[BlackElo "1541"]
[Annotator "NA RC"]
[PlyCount "85"]
[EventDate "2022.04.09"]
[EventCountry "IND"]
[SourceTitle "playchess.com"]
[Source "ChessBase"]
[SourceQuality "1"]
[TimeControl "5400+30"]

1. e4 {[%emt 0:00:02]} c5 {[%emt 0:00:10]} 2. Nf3 {[%emt 0:00:05]} d6 {[%emt 0:00:08]} 3. d4 {[%emt 0:00:05]} cxd4 {[%emt 0:00:04]} 4. Nxd4 {[%emt 0:00:05]} Nf6 {[%emt 0:00:02]} 5. Nc3 {[%emt 0:00:08]} a6 {[%emt 0:00:01]} 6. f3 {[%emt 0:00:08]} e6 {[%emt 0:00:06]} 7. Be3 {[%emt 0:00:05]} b5 {[%emt 0:00:02]} 8. Qd2 {[%emt 0:00:07]} Bb7 {[%emt 0:00:11]} 9. a3 {[%emt 0:01:02]} Nbd7 {[%emt 0:00:12]} 10. O-O-O {[%emt 0:06:10]} d5 {[%emt 0:02:46]} 11. exd5 {[%emt 0:02:48]} Nxd5 {[%emt 0:00:07]} 12. Nxd5 {[%emt 0:00:20]} Bxd5 {[%emt 0:00:03]} 13. Kb1 {[%emt 0:00:37]} Qc7 {[%emt 0:07:57]} 14. Be2 {[%emt 0:11:58]} Bc5 {[%emt 0:00:56]} 15. Nb3 {[%emt 0:06:58]} Bxe3 {[%emt 0:00:16]} 16. Qxe3 {[%emt 0:00:06]} O-O {[%emt 0:00:40]} 17. h4 {[%emt 0:16:06]} Rfc8 {[%emt 0:00:21]} 18. Qd2 {[%emt 0:03:15]} Nb6 {[%emt 0:01:16]} 19. Na5 {[%emt 0:02:05]} Rd8 {[%emt 0:01:20]} 20. Qb4 {[%emt 0:01:44]} Rab8 {[%emt 0:02:38]} 21. h5 {[%emt 0:05:43]} Rdc8 {[%emt 0:01:01]} 22. Rd2 {[%emt 0:07:49]} h6 {[%emt 0:09:31]} 23. Rh4 {[%emt 0:12:35]} Qg3 {[%emt 0:03:45]} 24. Rg4 {[%emt 0:04:20]} Qe1+ {[%emt 0:00:31]} 25. Bd1 {[%emt 0:00:04]} e5 {[%emt 0:03:04]} 26. Rd3 {[%emt 0:03:14]} Qf1 {[%emt 0:02:40]} 27. Qd2 {[%emt 0:00:47]} Be6 {[%emt 0:02:31]} 28. Rg3 {[%emt 0:02:26]} Kh8 {[%emt 0:03:10]} 29. Qe2 {[%emt 0:06:18]} Qxe2 {[%emt 0:00:22]} 30. Bxe2 {[%emt 0:00:02]} Bf5 {[%emt 0:00:15]} 31. Rd2 {[%emt 0:00:10]} Nc4 {[%emt 0:00:15]} 32. Nxc4 {[%emt 0:02:12]} bxc4 {[%emt 0:00:02]} 33. Kc1 {[%emt 0:02:09]} c3 {[%emt 0:01:07]} 34. bxc3 {[%emt 0:00:02]} Rxc3 {[%emt 0:00:02]} 35. Bxa6 {[%emt 0:00:19]} Rxa3 {[%emt 0:00:34]} 36. Rd6 {[%emt 0:00:11]} Ra1+ {[%emt 0:00:53]} 37. Kd2 {[%emt 0:00:07]} Rb2 {[%emt 0:00:58]} 38. Bd3 {[%emt 0:00:44]} Bxd3 {[%emt 0:00:12]} 39. Rxd3 {[%emt 0:00:05]} Raa2 {[%emt 0:03:32]} 40. Rc3 {[%emt 0:00:11]} Rb7 {[%emt 0:00:50]} 41. Rg4 {[%emt 0:00:23]} Rd7+ {[%emt 0:00:09]} 42. Rd3 {[%emt 0:00:38]} Rc7 {[%emt 0:00:11]} 43. Rc3 {[%emt 0:00:06]} 1/2-1/2

[Event "34th MPL National U12 Chess-ch 2022"]
[Site "Mysore"]
[Date "2022.04.13"]
[Round "10.3"]
[White "Tanmay Rajbongshi"]
[Black "Vivaan Vijay Saraogi"]
[Result "0-1"]
[ECO "B13"]
[WhiteElo "1516"]
[BlackElo "1519"]
[Annotator "NA RC"]
[PlyCount "90"]
[EventDate "2022.04.09"]
[EventCountry "IND"]
[SourceTitle "playchess.com"]
[Source "ChessBase"]
[SourceQuality "1"]
[TimeControl "5400+30"]

1. e4 {[%emt 0:00:02]} c6 {[%emt 1:31:00]} 2. d4 {[%emt 0:00:09]} d5 {[%emt 0:00:00]} 3. exd5 {[%emt 0:00:15]} cxd5 {[%emt 0:00:00]} 4. Bd3 {[%emt 0:00:09]} Nc6 {[%emt 0:00:00]} 5. c3 {[%emt 0:00:00]} Nf6 {[%emt 0:00:00]} 6. Bf4 {[%emt 0:00:08]} g6 {[%emt 0:00:00]} 7. Nd2 {[%emt 0:00:43]} Nh5 {[%emt 0:00:00]} 8. Bg3 {[%emt 0:03:19]} Bh6 {[%emt 0:00:00]} 9. Ngf3 {[%emt 0:01:06]} O-O {[%emt 0:00:00]} 10. O-O {[%emt 0:01:07]} Nxg3 {[%emt 0:00:00]} 11. hxg3 {[%emt 0:00:30]} Bg4 {[%emt 0:00:00]} 12. b4 {[%emt 0:02:24]} a6 {[%emt 0:00:00]} 13. Be2 {[%emt 0:02:09]} Qc7 {[%emt 0:00:00]} 14. Re1 {[%emt 0:04:37]} Rfe8 {[%emt 0:00:00]} 15. a4 {[%emt 0:03:41]} Rac8 {[%emt 0:00:00]} 16. Qb3 {[%emt 0:07:24]} e5 {[%emt 0:00:00]} 17. dxe5 {[%emt 0:06:18]} Nxe5 {[%emt 0:00:00]} 18. Nxe5 {[%emt 0:02:12]} Bxe2 {[%emt 0:00:00]} 19. Ndf3 {[%emt 0:02:53]} Bxf3 {[%emt 0:00:00]} 20. Nxf3 {[%emt 0:00:16]} Rxe1+ {[%emt 0:00:00]} 21. Rxe1 {[%emt 0:00:17]} Qxc3 {[%emt 0:00:00]} 22. Qxd5 {[%emt 0:01:59]} Qxb4 {[%emt 0:00:00]} 23. Qd7 {[%emt 0:02:21]} Rf8 {[%emt 0:00:00]} 24. Re7 {[%emt 0:02:24]} b5 {[%emt 0:00:00]} 25. axb5 {[%emt 0:04:24]} axb5 {[%emt 0:00:00]} 26. Re5 {[%emt 0:02:20]} Qb1+ {[%emt 0:00:00]} 27. Re1 {[%emt 0:00:23]} Qb2 {[%emt 0:00:00]} 28. Re7 {[%emt 0:02:30]} Bg7 {[%emt 0:00:00]} 29. Qd5 {[%emt 0:03:51]} Qc1+ {[%emt 0:00:00]} 30. Kh2 {[%emt 0:00:46]} Qc4 {[%emt 0:00:00]} 31. Qb7 {[%emt 0:02:37]} Qc5 {[%emt 0:00:00]} 32. Kg1 {[%emt 0:02:36]} Rd8 {[%emt 0:00:00]} 33. g4 {[%emt 0:03:42]} Bf8 {[%emt 0:00:00]} 34. Re1 {[%emt 0:02:22]} Bd6 {[%emt 0:00:00]} 35. Rd1 {[%emt 0:03:20]} Bh2+ {[%emt 0:00:00]} 36. Kxh2 {[%emt 0:00:12]} Rxd1 {[%emt 0:00:00]} 37. g5 {[%emt 0:01:49]} Qd6+ {[%emt 0:00:00]} 38. g3 {[%emt 0:00:30]} b4 {[%emt 0:00:00]} 39. Kg2 {[%emt 0:00:33]} Kg7 {[%emt 0:00:00]} 40. Qe4 {[%emt 0:02:09]} b3 {[%emt 0:00:00]} 41. Qe2 {[%emt 0:00:51]} Rb1 {[%emt 0:00:00]} 42. Qe4 {[%emt 0:00:57]} Rc1 {[%emt 0:00:00]} 43. Qe2 {[%emt 0:02:07]} Rc2 {[%emt 0:00:00]} 44. Qe4 {[%emt 0:00:28]} Qc5 {[%emt 0:00:00]} 45. Nd4 {[%emt 0:01:07]} b2 {[%emt 0:00:00]} 0-1

[Event "34th MPL National U12 Chess-ch 2022"]
[Site "Mysore"]
[Date "2022.04.13"]
[Round "10.4"]
[White "Gandhi, Aakash"]
[Black "Sherla Prathamesh"]
[Result "1-0"]
[ECO "E36"]
[WhiteElo "1698"]
[BlackElo "1484"]
[Annotator "NA RC"]
[PlyCount "99"]
[EventDate "2022.04.09"]
[EventCountry "IND"]
[SourceTitle "playchess.com"]
[Source "ChessBase"]
[SourceQuality "1"]
[TimeControl "5400+30"]

1. d4 {[%emt 0:00:36]} Nf6 {[%emt 0:00:06]} 2. c4 {[%emt 0:00:14]} e6 {[%emt 0:00:07]} 3. Nc3 {[%emt 0:01:07]} Bb4 {[%emt 0:00:16]} 4. Qc2 {[%emt 0:00:24]} d5 {[%emt 0:03:41]} 5. a3 {[%emt 0:00:56]} Be7 {[%emt 0:01:11]} 6. cxd5 {[%emt 0:00:36]} exd5 {[%emt 0:00:33]} 7. Bg5 {[%emt 0:00:40]} c6 {[%emt 0:01:35]} 8. e3 {[%emt 0:00:17]} Bg4 {[%emt 0:04:03]} 9. Bd3 {[%emt 0:00:49]} Bh5 {[%emt 0:01:38]} 10. Nge2 {[%emt 0:00:37]} Bg6 {[%emt 0:01:42]} 11. O-O {[%emt 0:02:01]} O-O {[%emt 0:01:42]} 12. Ng3 {[%emt 0:00:26]} Bxd3 {[%emt 0:06:11]} 13. Qxd3 {[%emt 0:01:10]} h6 {[%emt 0:01:53]} 14. Bf4 {[%emt 0:01:25]} Nbd7 {[%emt 0:04:21]} 15. Nf5 {[%emt 0:02:36]} Re8 {[%emt 0:02:22]} 16. Ne2 {[%emt 0:03:10]} Bf8 {[%emt 0:01:51]} 17. Neg3 {[%emt 0:03:14]} Re6 {[%emt 0:09:52]} 18. h4 {[%emt 0:01:27]} Ne4 {[%emt 0:01:39]} 19. Nxe4 {[%emt 0:13:23]} dxe4 {[%emt 0:03:54]} 20. Qe2 {[%emt 0:02:46]} Kh7 {[%emt 0:05:22]} 21. h5 {[%emt 1:03:06]} g6 {[%emt 0:07:45]} 22. hxg6+ {[%emt 0:00:00]} fxg6 {[%emt 0:00:18]} 23. Ng3 {[%emt 0:00:00]} Bg7 {[%emt 0:01:48]} 24. Qc2 {[%emt 0:00:00]} Qe7 {[%emt 0:01:25]} 25. f3 {[%emt 0:00:00]} exf3 {[%emt 0:02:14]} 26. Rxf3 {[%emt 0:00:00]} Rf8 {[%emt 0:04:13]} 27. Nh5 {[%emt 0:00:00]} Kg8 {[%emt 0:06:58]} 28. Nxg7 {[%emt 0:00:00]} Kxg7 {[%emt 0:00:02]} 29. Raf1 {[%emt 0:00:00]} Ref6 {[%emt 0:00:53]} 30. Qd2 {[%emt 0:00:00]} Qe4 {[%emt 0:04:59]} 31. Qb4 {[%emt 0:00:00]} Kg8 {[%emt 0:07:49]} 32. Qb3+ {[%emt 0:00:00]} Qd5 {[%emt 0:01:13]} 33. Qxb7 {[%emt 0:00:00]} g5 {[%emt 0:01:56]} 34. Bh2 {[%emt 0:00:00]} Rxf3 {[%emt 0:00:31]} 35. Rxf3 {[%emt 0:00:00]} Rxf3 {[%emt 0:00:08]} 36. gxf3 {[%emt 0:00:00]} Qe6 {[%emt 0:06:46]} 37. Kf2 {[%emt 0:00:00]} h5 {[%emt 0:02:38]} 38. Qc8+ {[%emt 0:00:00]} Kf7 {[%emt 0:01:15]} 39. Qh8 {[%emt 0:00:00]} Qg6 {[%emt 0:00:10]} 40. e4 {[%emt 0:00:00]} g4 {[%emt 0:00:50]} 41. Qd8 {[%emt 0:00:00]} Nf6 {[%emt 0:00:58]} 42. Qc7+ {[%emt 0:00:00]} Kg8 {[%emt 0:00:16]} 43. Qb8+ {[%emt 0:00:00]} Ne8 {[%emt 0:00:09]} 44. Qb3+ {[%emt 0:00:00]} Kh7 {[%emt 0:00:11]} 45. Be5 {[%emt 0:00:00]} Kh6 {[%emt 0:01:17]} 46. Qb7 {[%emt 0:00:00]} h4 {[%emt 0:00:29]} 47. Qe7 {[%emt 0:00:47]} g3+ {[%emt 0:01:15]} 48. Kg2 {[%emt 0:00:08]} Kh5 {[%emt 0:01:13]} 49. Bf4 {[%emt 0:00:17]} Nf6 {[%emt 0:00:18]} 50. Qe5+ {[%emt 0:00:02]} 1-0